[Event "Open Nuevo Centro. Jornada 2"]
[Site "Chess.com"]
[Date "2020.06.26"]
[Round "5"]
[White "Montesinos Diaz, Luis"]
[Black "Crevillen Abad, Clemente"]
[Result "1-0"]
[WhiteElo "1881"]
[BlackElo "1755"]
[TimeControl "180+2"]
[EndTime "11:24:42 PDT"]
[Termination "Victoria de Gwiso_06 por abandono"]

1. d4 {[%clk 0:03:01.9]} 1... d5 {[%clk 0:02:59.3]} 2. Nf3 {[%clk 0:02:52.4]}
2... Nf6 {[%clk 0:02:59.2]} 3. e3 {[%clk 0:02:50.8]} 3... c5 {[%clk 0:02:58.2]}
4. b3 {[%clk 0:02:49.2]} 4... cxd4 {[%clk 0:02:50.9]} 5. exd4 {[%clk 0:02:47.6]}
5... Bg4 {[%clk 0:02:44.7]} 6. Nbd2 {[%clk 0:02:44.3]} 6... Nbd7 {[%clk
0:02:40.8]} 7. Bb2 {[%clk 0:02:44.4]} 7... e6 {[%clk 0:02:40.7]} 8. h3 {[%clk
0:02:45.2]} 8... Bh5 {[%clk 0:02:38.2]} 9. Bd3 {[%clk 0:02:45.6]} 9... Bd6
{[%clk 0:02:33.5]} 10. O-O {[%clk 0:02:45.6]} 10... O-O {[%clk 0:02:31]} 11. c4
{[%clk 0:02:46.1]} 11... Bg6 {[%clk 0:02:26.4]} 12. Bxg6 {[%clk 0:02:40.3]}
12... hxg6 {[%clk 0:02:22.2]} 13. Ne5 {[%clk 0:02:36.5]} 13... Bxe5 {[%clk
0:01:54.4]} 14. dxe5 {[%clk 0:02:36.9]} 14... Ne8 {[%clk 0:01:44.7]} 15. cxd5
{[%clk 0:02:36.9]} 15... exd5 {[%clk 0:01:44.9]} 16. Nf3 {[%clk 0:02:37.8]}
16... Nb6 {[%clk 0:01:39.1]} 17. Qd4 {[%clk 0:02:35.2]} 17... f6 {[%clk
0:01:32.1]} 18. exf6 {[%clk 0:02:33.1]} 18... Nxf6 {[%clk 0:01:27.6]} 19. Rfe1
{[%clk 0:02:33.3]} 19... Re8 {[%clk 0:01:19.8]} 20. Rxe8+ {[%clk 0:02:30.6]}
20... Qxe8 {[%clk 0:01:19.4]} 21. Re1 {[%clk 0:02:32.1]} 21... Qd7 {[%clk
0:00:43.7]} 22. Ne5 {[%clk 0:02:29.8]} 22... Qf5 {[%clk 0:00:40.1]} 23. Ng4
{[%clk 0:02:21.9]} 23... Rf8 {[%clk 0:00:26.7]} 24. Re7 {[%clk 0:02:10.4]} 24...
Rf7 {[%clk 0:00:26.3]} 25. Nxf6+ {[%clk 0:02:09.4]} 25... Qxf6 {[%clk
0:00:18.8]} 26. Re8+ {[%clk 0:02:03]} 26... Rf8 {[%clk 0:00:18.7]} 27. Qxf6
{[%clk 0:02:02.3]} 27... gxf6 {[%clk 0:00:18.5]} 28. Rxf8+ {[%clk 0:02:00.6]}
28... Kxf8 {[%clk 0:00:19.4]} 29. Bxf6 {[%clk 0:02:02.1]} 29... Kf7 {[%clk
0:00:19.1]} 30. Bd4 {[%clk 0:02:02.7]} 30... Nc8 {[%clk 0:00:19.5]} 31. Kf1
{[%clk 0:02:03.3]} 31... Ke6 {[%clk 0:00:19.9]} 32. Ke2 {[%clk 0:02:04]} 32...
a6 {[%clk 0:00:20.8]} 33. g4 {[%clk 0:02:04.2]} 33... Nd6 {[%clk 0:00:21.5]} 34.
f3 {[%clk 0:02:03]} 34... Nb5 {[%clk 0:00:18.3]} 35. Kd3 {[%clk 0:02:03.6]}
35... Nd6 {[%clk 0:00:18.2]} 36. h4 {[%clk 0:02:04]} 36... Nf7 {[%clk
0:00:16.8]} 37. Ke3 {[%clk 0:02:00.6]} 37... b5 {[%clk 0:00:15.3]} 38. b4 {[%clk
0:02:00.4]} 38... Ke7 {[%clk 0:00:13.8]} 39. Kf4 {[%clk 0:01:59.5]} 39... Nd8
{[%clk 0:00:10.8]} 40. h5 {[%clk 0:01:58.1]} 40... Kf7 {[%clk 0:00:11.3]} 41.
Ke5 {[%clk 0:01:57.1]} 41... gxh5 {[%clk 0:00:10.9]} 42. gxh5 {[%clk 0:01:57.9]}
42... Ne6 {[%clk 0:00:11.1]} 43. Kxd5 {[%clk 0:01:58.2]} 43... Nf4+ {[%clk
0:00:12]} 44. Kc6 {[%clk 0:01:57.4]} 44... Nxh5 {[%clk 0:00:12.9]} 45. Kb6
{[%clk 0:01:58]} 45... Ke6 {[%clk 0:00:13.8]} 46. Kxa6 {[%clk 0:01:59.2]} 46...
Kd5 {[%clk 0:00:13.9]} 47. Bc5 {[%clk 0:01:57.2]} 47... Kc4 {[%clk 0:00:14.3]}
48. Ka5 {[%clk 0:01:55.2]} 48... Ng7 {[%clk 0:00:13.1]} 49. f4 {[%clk
0:01:53.2]} 49... Ne6 {[%clk 0:00:13.4]} 50. f5 {[%clk 0:01:52.7]} 50... Nxc5
{[%clk 0:00:10.6]} 51. bxc5 {[%clk 0:01:52.4]} 51... Kxc5 {[%clk 0:00:11.9]} 52.
f6 {[%clk 0:01:37.7]} 52... Kd6 {[%clk 0:00:11]} 53. Kxb5 {[%clk 0:01:39]} 53...
Ke6 {[%clk 0:00:11.9]} 54. a4 {[%clk 0:01:40]} 54... Kxf6 {[%clk 0:00:13.1]} 55.
a5 {[%clk 0:01:41.1]} 55... Ke6 {[%clk 0:00:14.3]} 56. Kc6 {[%clk 0:01:42]} 1

[Event "Open Nuevo Centro. Jornada 2"]
[Site "Chess.com"]
[Date "2020.06.26"]
[Round "5"]
[White "Lloret Ramis, Juan José"]
[Black "Montes Molina, Ivan"]
[Result "1-0"]
[WhiteElo "1977"]
[BlackElo "1285"]
[TimeControl "180+2"]
[EndTime "11:25:00 PDT"]
[Termination "Victoria de Amiplim por jaque mate"]

1. c4 {[%clk 0:03:01.9]} 1... Nf6 {[%clk 0:03:00]} 2. Nc3 {[%clk 0:03:03]} 2...
d5 {[%clk 0:03:00.3]} 3. cxd5 {[%clk 0:03:03.3]} 3... Nxd5 {[%clk 0:03:01.1]} 4.
Nf3 {[%clk 0:03:04.8]} 4... b6 {[%clk 0:03:01.9]} 5. g3 {[%clk 0:02:52.3]} 5...
Bb7 {[%clk 0:02:58.8]} 6. Bg2 {[%clk 0:02:53.7]} 6... Nxc3 {[%clk 0:02:58.9]} 7.
bxc3 {[%clk 0:02:49.8]} 7... g5 {[%clk 0:02:57.8]} 8. O-O {[%clk 0:02:42.5]}
8... g4 {[%clk 0:02:57.4]} 9. Qa4+ {[%clk 0:02:43.8]} 9... Qd7 {[%clk
0:02:55.3]} 10. Qxd7+ {[%clk 0:02:40.7]} 10... Nxd7 {[%clk 0:02:55.6]} 11. Nh4
{[%clk 0:02:34.7]} 11... Bxg2 {[%clk 0:02:54.7]} 12. Nxg2 {[%clk 0:02:32.9]}
12... e5 {[%clk 0:02:52.3]} 13. d3 {[%clk 0:02:31]} 13... Be7 {[%clk 0:02:50.3]}
14. Ne3 {[%clk 0:02:26.4]} 14... h5 {[%clk 0:02:49.2]} 15. a4 {[%clk 0:02:18.6]}
15... Bg5 {[%clk 0:02:45.7]} 16. Nd5 {[%clk 0:02:11.7]} 16... Bxc1 {[%clk
0:02:16.6]} 17. Rfxc1 {[%clk 0:02:12.9]} 17... Rc8 {[%clk 0:02:13.1]} 18. a5
{[%clk 0:02:10.9]} 18... c6 {[%clk 0:02:12.5]} 19. Ne3 {[%clk 0:01:56.2]} 19...
O-O {[%clk 0:01:56.3]} 20. axb6 {[%clk 0:01:48.6]} 20... axb6 {[%clk 0:01:53.5]}
21. Ra7 {[%clk 0:01:49]} 21... Nc5 {[%clk 0:01:45.4]} 22. Nf5 {[%clk 0:01:42.7]}
22... Kh7 {[%clk 0:01:30.9]} 23. Nd6 {[%clk 0:01:36.8]} 23... Ra8 {[%clk
0:01:29.1]} 24. Rxf7+ {[%clk 0:01:34.1]} 24... Rxf7 {[%clk 0:01:29.6]} 25. Nxf7
{[%clk 0:01:35.7]} 25... Nd7 {[%clk 0:01:16.3]} 26. c4 {[%clk 0:01:11.6]} 26...
c5 {[%clk 0:01:10.3]} 27. Rb1 {[%clk 0:01:05.9]} 27... Ra2 {[%clk 0:01:07.6]}
28. Kf1 {[%clk 0:01:04.8]} 28... Kg6 {[%clk 0:00:55.8]} 29. Nd6 {[%clk
0:00:59.5]} 29... Ra8 {[%clk 0:00:51.1]} 30. Ne4 {[%clk 0:00:56.6]} 30... Kf5
{[%clk 0:00:46.4]} 31. Nc3 {[%clk 0:00:57.3]} 31... Rb8 {[%clk 0:00:38.5]} 32.
Nd5 {[%clk 0:00:55.7]} 32... Ke6 {[%clk 0:00:38.4]} 33. Ra1 {[%clk 0:00:54.3]}
33... Nf6 {[%clk 0:00:35.6]} 34. Nxf6 {[%clk 0:00:47.2]} 34... Kxf6 {[%clk
0:00:35.4]} 35. Ra7 {[%clk 0:00:48.7]} 35... Kg5 {[%clk 0:00:27.8]} 36. Rc7
{[%clk 0:00:46.6]} 36... h4 {[%clk 0:00:26.5]} 37. Rg7+ {[%clk 0:00:42]} 37...
Kh6 {[%clk 0:00:27.1]} 38. Rxg4 {[%clk 0:00:42.4]} 38... h3 {[%clk 0:00:19.9]}
39. Rh4+ {[%clk 0:00:42.6]} 39... Kg5 {[%clk 0:00:21.1]} 40. Rxh3 {[%clk
0:00:43.7]} 40... Ra8 {[%clk 0:00:21.9]} 41. Rh7 {[%clk 0:00:41.4]} 41... Kg4
{[%clk 0:00:22.8]} 42. Kg2 {[%clk 0:00:42.8]} 42... Ra5 {[%clk 0:00:17.8]} 43.
Re7 {[%clk 0:00:41.8]} 43... b5 {[%clk 0:00:18.8]} 44. cxb5 {[%clk 0:00:41.1]}
44... Rxb5 {[%clk 0:00:20.7]} 45. Rxe5 {[%clk 0:00:42]} 45... c4 {[%clk
0:00:15.7]} 46. h3# {[%clk 0:00:40.7]} 1

[Event "Open Nuevo Centro. Jornada 2"]
[Site "Chess.com"]
[Date "2020.06.26"]
[Round "5"]
[White "Valero Martinez, Óscar"]
[Black "Birnoveanu, Petru"]
[Result "0-1"]
[WhiteElo "873"]
[BlackElo "1691"]
[TimeControl "180+2"]
[EndTime "11:25:03 PDT"]
[Termination "Victoria de piculet por jaque mate"]

1. e4 {[%clk 0:03:01.4]} 1... Nc6 {[%clk 0:03:00]} 2. Nf3 {[%clk 0:03:02.7]}
2... f5 {[%clk 0:03:00.1]} 3. Nc3 {[%clk 0:03:02.4]} 3... fxe4 {[%clk
0:03:00.5]} 4. Nxe4 {[%clk 0:03:02.2]} 4... d5 {[%clk 0:03:02]} 5. Nc5 {[%clk
0:03:02.6]} 5... e5 {[%clk 0:03:01.6]} 6. Bb5 {[%clk 0:03:01.4]} 6... Bxc5
{[%clk 0:03:00.4]} 7. d3 {[%clk 0:02:58.4]} 7... Bd6 {[%clk 0:02:59.2]} 8. Bg5
{[%clk 0:02:45.8]} 8... Nf6 {[%clk 0:02:57]} 9. Qe2 {[%clk 0:02:39.9]} 9... O-O
{[%clk 0:02:52.7]} 10. d4 {[%clk 0:02:28]} 10... e4 {[%clk 0:02:41.8]} 11. Bxc6
{[%clk 0:02:12.4]} 11... exf3 {[%clk 0:02:40.2]} 12. Qxf3 {[%clk 0:02:11.5]}
12... bxc6 {[%clk 0:02:39.6]} 13. O-O {[%clk 0:02:09.3]} 13... h6 {[%clk
0:02:38.5]} 14. Bxh6 {[%clk 0:01:51.7]} 14... gxh6 {[%clk 0:02:38]} 15. Rae1
{[%clk 0:01:48.4]} 15... Ne4 {[%clk 0:02:34.6]} 16. Qh5 {[%clk 0:01:35.2]} 16...
Qg5 {[%clk 0:02:29.6]} 17. Qxg5+ {[%clk 0:01:17.1]} 17... hxg5 {[%clk
0:02:28.4]} 18. f3 {[%clk 0:01:18.5]} 18... Nd2 {[%clk 0:02:23.1]} 19. Rf2
{[%clk 0:01:18.5]} 19... Nc4 {[%clk 0:02:23.8]} 20. b3 {[%clk 0:01:15.3]} 20...
Nb6 {[%clk 0:02:24.7]} 21. Re5 {[%clk 0:01:15.4]} 21... Bxe5 {[%clk 0:02:23.2]}
22. dxe5 {[%clk 0:01:16.7]} 22... Bf5 {[%clk 0:02:22.8]} 23. g4 {[%clk
0:01:16.6]} 23... Be6 {[%clk 0:02:23]} 24. f4 {[%clk 0:01:11.2]} 24... Rxf4
{[%clk 0:02:21.5]} 25. Rg2 {[%clk 0:01:10.5]} 25... Nd7 {[%clk 0:02:20]} 26. c4
{[%clk 0:01:08.7]} 26... Rxg4 {[%clk 0:02:16.2]} 27. Rxg4 {[%clk 0:01:08.5]}
27... Bxg4 {[%clk 0:02:16.9]} 28. h3 {[%clk 0:01:08.6]} 28... Bxh3 {[%clk
0:02:16.9]} 29. Kh2 {[%clk 0:01:09.6]} 29... Be6 {[%clk 0:02:15.5]} 30. c5
{[%clk 0:01:09.3]} 30... Nxc5 {[%clk 0:02:15.4]} 31. b4 {[%clk 0:01:10.2]} 31...
Nd3 {[%clk 0:02:16.3]} 32. Kg3 {[%clk 0:01:10]} 32... Nxe5 {[%clk 0:02:16.7]}
33. Kf2 {[%clk 0:01:08.7]} 33... Nd3+ {[%clk 0:02:16.6]} 34. Ke3 {[%clk
0:01:08.7]} 34... Nxb4 {[%clk 0:02:17.5]} 35. a3 {[%clk 0:01:09.2]} 35... Na6
{[%clk 0:02:17.6]} 36. Kd4 {[%clk 0:01:09.5]} 36... Kf7 {[%clk 0:02:18.1]} 37.
a4 {[%clk 0:01:10.6]} 37... c5+ {[%clk 0:02:17.9]} 38. Ke5 {[%clk 0:01:09.4]}
38... c6 {[%clk 0:02:11.6]} 39. a5 {[%clk 0:01:08]} 39... Nb4 {[%clk 0:02:04.3]}
40. Kd6 {[%clk 0:01:07.4]} 40... Rd8+ {[%clk 0:02:02]} 41. Kc7 {[%clk
0:01:06.6]} 41... Rd7+ {[%clk 0:02:02.7]} 42. Kb8 {[%clk 0:01:04]} 42... Na6+
{[%clk 0:01:59.6]} 43. Kc8 {[%clk 0:01:05.8]} 43... Rc7+ {[%clk 0:01:55.5]} 44.
Kd8 {[%clk 0:01:06.4]} 44... Rd7+ {[%clk 0:01:56.1]} 45. Kc8 {[%clk 0:01:07.2]}
45... Nb4 {[%clk 0:01:55.8]} 46. a6 {[%clk 0:01:07.9]} 46... Ke7 {[%clk
0:01:53.9]} 47. Kb8 {[%clk 0:01:04.9]} 47... Kd8 {[%clk 0:01:50.9]} 48. Ka8
{[%clk 0:01:03.9]} 48... Rc7 {[%clk 0:01:44.4]} 49. Kb8 {[%clk 0:01:05.1]} 49...
Nxa6+ {[%clk 0:01:42.8]} 50. Ka8 {[%clk 0:01:05.5]} 50... Nb4 {[%clk 0:01:39.6]}
51. Kb8 {[%clk 0:01:05.5]} 51... a5 {[%clk 0:01:39.3]} 52. Ka8 {[%clk
0:01:05.6]} 52... Bc8 {[%clk 0:01:38.5]} 53. Kb8 {[%clk 0:01:05.6]} 53... Na6+
{[%clk 0:01:36]} 54. Ka8 {[%clk 0:01:06.1]} 54... Bb7+ {[%clk 0:01:02.8]} 55.
Ka7 {[%clk 0:01:03]} 55... Bc8+ {[%clk 0:01:03.2]} 56. Ka8 {[%clk 0:01:03.3]}
56... Nb4 {[%clk 0:01:03.5]} 57. Kb8 {[%clk 0:01:02.4]} 57... c4 {[%clk
0:01:03]} 58. Ka8 {[%clk 0:01:01.4]} 58... c5 {[%clk 0:01:03.7]} 59. Kb8 {[%clk
0:01:01]} 59... Nc6+ {[%clk 0:01:03.3]} 60. Ka8 {[%clk 0:01:02.2]} 60... Ra7#
{[%clk 0:01:04.1]} 0

[Event "Open Nuevo Centro. Jornada 2"]
[Site "Chess.com"]
[Date "2020.06.26"]
[Round "5"]
[White "Martínez Albelda, Mariela"]
[Black "Conejero Martínez, Víctor"]
[Result "0-1"]
[WhiteElo "994"]
[BlackElo "1242"]
[TimeControl "180+2"]
[EndTime "11:25:25 PDT"]
[Termination "Victoria de Camelocota20 por jaque mate"]

1. d4 {[%clk 0:03:01.9]} 1... Nf6 {[%clk 0:02:59.4]} 2. Nc3 {[%clk 0:03:01.4]}
2... d5 {[%clk 0:02:59.8]} 3. Bf4 {[%clk 0:03:01.8]} 3... e6 {[%clk 0:03:00.1]}
4. Nb5 {[%clk 0:03:00.7]} 4... Bd6 {[%clk 0:02:53.6]} 5. Nxd6+ {[%clk
0:03:00.6]} 5... cxd6 {[%clk 0:02:54.3]} 6. Nf3 {[%clk 0:02:59.9]} 6... O-O
{[%clk 0:02:52.2]} 7. e3 {[%clk 0:02:59.5]} 7... Nc6 {[%clk 0:02:51.9]} 8. Be2
{[%clk 0:02:58.6]} 8... e5 {[%clk 0:02:49.3]} 9. dxe5 {[%clk 0:02:58.6]} 9...
dxe5 {[%clk 0:02:50.2]} 10. Nxe5 {[%clk 0:02:58.2]} 10... Nxe5 {[%clk
0:02:49.1]} 11. Bxe5 {[%clk 0:02:58.2]} 11... Bf5 {[%clk 0:02:41.5]} 12. Bd3
{[%clk 0:02:52.4]} 12... Be6 {[%clk 0:02:37.6]} 13. O-O {[%clk 0:02:50.5]} 13...
Ng4 {[%clk 0:02:35.8]} 14. Bf4 {[%clk 0:02:44.5]} 14... Qh4 {[%clk 0:02:29.9]}
15. f3 {[%clk 0:02:24.8]} 15... Nf6 {[%clk 0:02:25.4]} 16. g3 {[%clk 0:02:14.6]}
16... Qh5 {[%clk 0:02:20.2]} 17. g4 {[%clk 0:02:13.3]} 17... Qh3 {[%clk
0:02:11.6]} 18. Qe2 {[%clk 0:01:59]} 18... h5 {[%clk 0:02:10.3]} 19. gxh5 {[%clk
0:01:55.4]} 19... Nxh5 {[%clk 0:02:09.8]} 20. Qg2 {[%clk 0:01:50.3]} 20... Nxf4
{[%clk 0:02:07.2]} 21. exf4 {[%clk 0:01:46.6]} 21... Qh6 {[%clk 0:01:58]} 22. f5
{[%clk 0:01:43.6]} 22... Qe3+ {[%clk 0:01:51.3]} 23. Qf2 {[%clk 0:01:28.5]}
23... Qg5+ {[%clk 0:01:49.8]} 24. Qg2 {[%clk 0:01:20.2]} 24... Qe3+ {[%clk
0:01:45.8]} 25. Rf2 {[%clk 0:01:16.1]} 25... Bd7 {[%clk 0:01:46.4]} 26. f6
{[%clk 0:01:11.8]} 26... Qh6 {[%clk 0:01:28]} 27. Re1 {[%clk 0:00:50.5]} 27...
Bh3 {[%clk 0:01:28.2]} 28. Qg3 {[%clk 0:00:42.9]} 28... g6 {[%clk 0:01:13.8]}
29. Re7 {[%clk 0:00:33.5]} 29... b6 {[%clk 0:01:08.5]} 30. Rfe2 {[%clk
0:00:24.4]} 30... Rfd8 {[%clk 0:01:00.8]} 31. Rc7 {[%clk 0:00:19]} 31... Re8
{[%clk 0:00:54.6]} 32. Rxe8+ {[%clk 0:00:18.9]} 32... Rxe8 {[%clk 0:00:55.2]}
33. Bf1 {[%clk 0:00:18.6]} 33... Bxf1 {[%clk 0:00:50.9]} 34. Kxf1 {[%clk
0:00:18.8]} 34... Qc1+ {[%clk 0:00:51.1]} 35. Kf2 {[%clk 0:00:19.2]} 35... Qd2+
{[%clk 0:00:51.2]} 36. Kg1 {[%clk 0:00:19.4]} 36... Re1+ {[%clk 0:00:51.8]} 37.
Qxe1 {[%clk 0:00:18.6]} 37... Qxe1+ {[%clk 0:00:52.7]} 38. Kg2 {[%clk
0:00:19.6]} 38... Qe2+ {[%clk 0:00:52.5]} 39. Kg3 {[%clk 0:00:19.9]} 39... Qe5+
{[%clk 0:00:52.2]} 40. Kf2 {[%clk 0:00:18.4]} 40... Qxc7 {[%clk 0:00:53.1]} 41.
Kg2 {[%clk 0:00:18.9]} 41... Qxc2+ {[%clk 0:00:53.9]} 42. Kg3 {[%clk 0:00:19.7]}
42... Qxb2 {[%clk 0:00:54.7]} 43. Kf4 {[%clk 0:00:20.3]} 43... Qxf6+ {[%clk
0:00:55]} 44. Kg3 {[%clk 0:00:20.6]} 44... Kg7 {[%clk 0:00:56]} 45. f4 {[%clk
0:00:20.8]} 45... Kh6 {[%clk 0:00:56.6]} 46. Kg4 {[%clk 0:00:22.1]} 46... Qe6+
{[%clk 0:00:53.4]} 47. Kf3 {[%clk 0:00:20.9]} 47... Kh5 {[%clk 0:00:53.2]} 48.
Kg3 {[%clk 0:00:21.8]} 48... Qg4+ {[%clk 0:00:53.7]} 49. Kf2 {[%clk 0:00:21.4]}
49... Kh4 {[%clk 0:00:54.3]} 50. Ke1 {[%clk 0:00:19.3]} 50... Qxf4 {[%clk
0:00:55.1]} 51. Kd1 {[%clk 0:00:17.2]} 51... Qxh2 {[%clk 0:00:55.5]} 52. Kc1
{[%clk 0:00:17.9]} 52... Kg4 {[%clk 0:00:55.6]} 53. Kb1 {[%clk 0:00:18.5]} 53...
Kf3 {[%clk 0:00:56.7]} 54. Kc1 {[%clk 0:00:19]} 54... Ke3 {[%clk 0:00:57.4]} 55.
Kd1 {[%clk 0:00:19.6]} 55... Qxa2 {[%clk 0:00:58]} 56. Ke1 {[%clk 0:00:19.8]}
56... Qe2# {[%clk 0:00:58.9]} 0

[Event "Open Nuevo Centro. Jornada 2"]
[Site "Chess.com"]
[Date "2020.06.26"]
[Round "5"]
[White "Elenkov Olmo, Ivan"]
[Black "Sverdlik Roldán, Elías"]
[Result "1/2-1/2"]
[WhiteElo "903"]
[BlackElo "570"]
[TimeControl "180+2"]
[EndTime "11:25:28 PDT"]
[Termination "Tablas por repeticiÃ³n de movimientos"]

1. e4 {[%clk 0:02:41.3]} 1... e5 {[%clk 0:01:46.1]} 2. Nf3 {[%clk 0:02:35.3]}
2... d6 {[%clk 0:01:45.5]} 3. Nc3 {[%clk 0:02:34.2]} 3... Nc6 {[%clk 0:01:45.8]}
4. d3 {[%clk 0:02:32]} 4... Nf6 {[%clk 0:01:46]} 5. Bg5 {[%clk 0:02:29.5]} 5...
Be7 {[%clk 0:01:46.2]} 6. Bxf6 {[%clk 0:02:28.3]} 6... Bxf6 {[%clk 0:01:46.7]}
7. Nd5 {[%clk 0:02:28]} 7... Be6 {[%clk 0:01:31.1]} 8. Nxf6+ {[%clk 0:02:27.2]}
8... Qxf6 {[%clk 0:01:31.5]} 9. Be2 {[%clk 0:02:23.4]} 9... Nd4 {[%clk
0:01:30.4]} 10. Nxd4 {[%clk 0:02:15.8]} 10... exd4 {[%clk 0:01:30.7]} 11. O-O
{[%clk 0:02:15.8]} 11... d5 {[%clk 0:01:25.4]} 12. exd5 {[%clk 0:02:14.1]} 12...
Bxd5 {[%clk 0:01:26.6]} 13. Re1 {[%clk 0:02:08.5]} 13... O-O {[%clk 0:01:24.4]}
14. c4 {[%clk 0:01:59.3]} 14... Bc6 {[%clk 0:01:20.4]} 15. b4 {[%clk 0:01:53.8]}
15... Qg5 {[%clk 0:01:20.6]} 16. Bf3 {[%clk 0:01:46.4]} 16... Bxf3 {[%clk
0:01:13.1]} 17. Qxf3 {[%clk 0:01:46.1]} 17... Rae8 {[%clk 0:01:12]} 18. Rxe8
{[%clk 0:01:44.6]} 18... Rxe8 {[%clk 0:01:12.5]} 19. g3 {[%clk 0:01:44.5]} 19...
b6 {[%clk 0:00:54.7]} 20. Qd1 {[%clk 0:01:27]} 20... c5 {[%clk 0:00:51.2]} 21.
bxc5 {[%clk 0:01:26.4]} 21... bxc5 {[%clk 0:00:51.7]} 22. Qf1 {[%clk 0:01:25.5]}
22... a5 {[%clk 0:00:37.8]} 23. Re1 {[%clk 0:01:23.8]} 23... Rxe1 {[%clk
0:00:33.5]} 24. Qxe1 {[%clk 0:01:23.6]} 24... h6 {[%clk 0:00:31.1]} 25. Qxa5
{[%clk 0:01:22.7]} 25... Qc1+ {[%clk 0:00:28.7]} 26. Kg2 {[%clk 0:01:21.7]}
26... h5 {[%clk 0:00:21.7]} 27. Qxc5 {[%clk 0:01:20.5]} 27... Qc3 {[%clk
0:00:17.4]} 28. a4 {[%clk 0:01:18.8]} 28... Qxd3 {[%clk 0:00:16.5]} 29. a5
{[%clk 0:01:15]} 29... Qe4+ {[%clk 0:00:10.3]} 30. Kg1 {[%clk 0:01:12.5]} 30...
Qe1+ {[%clk 0:00:09.3]} 31. Kg2 {[%clk 0:01:11.7]} 31... d3 {[%clk 0:00:09.5]}
32. Qc8+ {[%clk 0:01:04.2]} 32... Kh7 {[%clk 0:00:07.7]} 33. Qf5+ {[%clk
0:01:03.3]} 33... g6 {[%clk 0:00:03.3]} 34. Qxf7+ {[%clk 0:01:00.4]} 34... Kh6
{[%clk 0:00:03]} 35. Qf8+ {[%clk 0:00:41.4]} 35... Kg5 {[%clk 0:00:02.6]} 36.
Qc5+ {[%clk 0:00:39.3]} 36... Kh6 {[%clk 0:00:02]} 37. a6 {[%clk 0:00:24.6]}
37... d2 {[%clk 0:00:02.2]} 38. Qf8+ {[%clk 0:00:23.7]} 38... Kg5 {[%clk
0:00:02.5]} 39. Qd8+ {[%clk 0:00:21.2]} 39... Kh6 {[%clk 0:00:03.5]} 40. Qf8+
{[%clk 0:00:21.6]} 40... Kg5 {[%clk 0:00:03.3]} 41. Qd8+ {[%clk 0:00:22.1]}
41... Kh6 {[%clk 0:00:04]} 42. Qf8+ {[%clk 0:00:22.9]} 1/2-1

[Event "Open Nuevo Centro. Jornada 2"]
[Site "Chess.com"]
[Date "2020.06.26"]
[Round "5"]
[White "SIMARRO PEIRÓ, ANDRÉS"]
[Black "Ainsa Jimenez, Lucas"]
[Result "0-1"]
[WhiteElo "1007"]
[BlackElo "928"]
[TimeControl "180+2"]
[EndTime "11:25:31 PDT"]
[Termination "Victoria de ainsaluck por jaque mate"]

1. e4 {[%clk 0:03:00.8]} 1... e5 {[%clk 0:03:00.1]} 2. Nf3 {[%clk 0:03:00.5]}
2... Nc6 {[%clk 0:03:00.3]} 3. Nc3 {[%clk 0:02:56.4]} 3... Bc5 {[%clk
0:02:59.6]} 4. Bb5 {[%clk 0:02:53.8]} 4... Qe7 {[%clk 0:02:45.3]} 5. Nd5 {[%clk
0:02:50.6]} 5... Qe6 {[%clk 0:02:40.4]} 6. Nxc7+ {[%clk 0:02:49.3]} 6... Ke7
{[%clk 0:02:34.8]} 7. Nxe6 {[%clk 0:02:51.2]} 7... Kxe6 {[%clk 0:02:35.2]} 8.
Ng5+ {[%clk 0:02:50.9]} 8... Ke7 {[%clk 0:02:34.3]} 9. d3 {[%clk 0:02:45.4]}
9... f6 {[%clk 0:02:32.6]} 10. Nf3 {[%clk 0:02:42.3]} 10... d6 {[%clk 0:02:32]}
11. Bxc6 {[%clk 0:02:38.2]} 11... bxc6 {[%clk 0:02:31.1]} 12. O-O {[%clk
0:02:26.3]} 12... Ke8 {[%clk 0:02:30]} 13. c3 {[%clk 0:02:18.6]} 13... Ne7
{[%clk 0:02:29.5]} 14. d4 {[%clk 0:02:14.6]} 14... exd4 {[%clk 0:02:28.2]} 15.
cxd4 {[%clk 0:02:16.5]} 15... Bb6 {[%clk 0:02:27.5]} 16. d5 {[%clk 0:02:07.9]}
16... cxd5 {[%clk 0:02:24.4]} 17. exd5 {[%clk 0:02:07.8]} 17... Kf7 {[%clk
0:02:24.4]} 18. Re1 {[%clk 0:02:04.1]} 18... Re8 {[%clk 0:02:22.2]} 19. Bf4
{[%clk 0:01:54.1]} 19... Bc5 {[%clk 0:02:10]} 20. a3 {[%clk 0:01:37.4]} 20... a5
{[%clk 0:02:09.2]} 21. Rc1 {[%clk 0:01:22.9]} 21... Kg8 {[%clk 0:02:04.2]} 22.
Bg3 {[%clk 0:01:06.5]} 22... Bd7 {[%clk 0:01:57.7]} 23. Nd2 {[%clk 0:00:53.3]}
23... Nf5 {[%clk 0:01:54.5]} 24. Rxe8+ {[%clk 0:00:48.4]} 24... Rxe8 {[%clk
0:01:51]} 25. Nb3 {[%clk 0:00:46.8]} 25... Nxg3 {[%clk 0:01:47.2]} 26. Nxc5
{[%clk 0:00:42]} 26... dxc5 {[%clk 0:01:46.3]} 27. hxg3 {[%clk 0:00:37.2]} 27...
Rc8 {[%clk 0:01:42.8]} 28. d6 {[%clk 0:00:34.9]} 28... Kf7 {[%clk 0:01:38.1]}
29. Qd5+ {[%clk 0:00:31.3]} 29... Be6 {[%clk 0:01:35.8]} 30. Qh5+ {[%clk
0:00:29.2]} 30... g6 {[%clk 0:01:36]} 31. Qxh7+ {[%clk 0:00:28.9]} 31... Ke8
{[%clk 0:01:36]} 32. Qxg6+ {[%clk 0:00:27.3]} 32... Kd7 {[%clk 0:01:31.8]} 33.
Qg7+ {[%clk 0:00:22.9]} 33... Kxd6 {[%clk 0:01:31.4]} 34. Qxf6 {[%clk
0:00:19.9]} 34... Rc7 {[%clk 0:01:30.3]} 35. Rd1+ {[%clk 0:00:19.5]} 35... Kc6
{[%clk 0:01:30]} 36. Qf3+ {[%clk 0:00:19.2]} 36... Kb5 {[%clk 0:01:30]} 37. a4+
{[%clk 0:00:18.4]} 37... Kxa4 {[%clk 0:01:30]} 38. Qa3+ {[%clk 0:00:19.3]} 38...
Kb5 {[%clk 0:01:30.3]} 39. Qb3+ {[%clk 0:00:18.9]} 39... Bxb3 {[%clk 0:01:30.5]}
40. Rd3 {[%clk 0:00:17.6]} 40... Bc4 {[%clk 0:01:29.7]} 41. Rc3 {[%clk
0:00:16.6]} 41... Re7 {[%clk 0:01:26.2]} 42. f4 {[%clk 0:00:13.5]} 42... Re2
{[%clk 0:01:25.5]} 43. g4 {[%clk 0:00:12.1]} 43... Rxb2 {[%clk 0:01:25.2]} 44.
g5 {[%clk 0:00:11.3]} 44... Rb3 {[%clk 0:01:24.5]} 45. Rxb3+ {[%clk 0:00:09.7]}
45... Bxb3 {[%clk 0:01:24.5]} 46. f5 {[%clk 0:00:11.3]} 46... a4 {[%clk
0:01:25.8]} 47. f6 {[%clk 0:00:12.7]} 47... a3 {[%clk 0:01:27.7]} 48. g6 {[%clk
0:00:14.2]} 48... a2 {[%clk 0:01:29.6]} 49. f7 {[%clk 0:00:15.4]} 49... a1=Q+
{[%clk 0:01:30.1]} 50. Kh2 {[%clk 0:00:15.4]} 50... Qg7 {[%clk 0:01:29.7]} 51.
g4 {[%clk 0:00:13.3]} 51... Bxf7 {[%clk 0:01:29.8]} 52. gxf7 {[%clk 0:00:12.9]}
52... Qxf7 {[%clk 0:01:30.1]} 53. Kg3 {[%clk 0:00:14.8]} 53... Qb3+ {[%clk
0:01:29.7]} 54. Kh4 {[%clk 0:00:15.6]} 54... c4 {[%clk 0:01:30.3]} 55. Kg5
{[%clk 0:00:15.4]} 55... c3 {[%clk 0:01:32.2]} 56. Kf4 {[%clk 0:00:15.4]} 56...
c2 {[%clk 0:01:34.1]} 57. g5 {[%clk 0:00:14.9]} 57... c1=Q+ {[%clk 0:01:36]} 58.
Kf5 {[%clk 0:00:14.6]} 58... Qc6 {[%clk 0:01:35.6]} 59. g6 {[%clk 0:00:14.8]}
59... Qbd5+ {[%clk 0:01:35.8]} 60. Kg4 {[%clk 0:00:13.2]} 60... Qcc4+ {[%clk
0:01:37.7]} 61. Kg3 {[%clk 0:00:10.6]} 61... Qdd4 {[%clk 0:01:39.6]} 62. Kf3
{[%clk 0:00:10.6]} 62... Qdd5+ {[%clk 0:01:41.5]} 63. Ke3 {[%clk 0:00:11]} 63...
Qdd3+ {[%clk 0:01:43.4]} 64. Kf2 {[%clk 0:00:10.8]} 64... Qcc2+ {[%clk
0:01:45.3]} 65. Ke1 {[%clk 0:00:11.6]} 65... Qdd1# {[%clk 0:01:47.1]} 0